Workbook

Sheet Tableau 12
A1: Tableau 12: Abonnements délivrés
A3: en nombre de titres | B3: 2017 | C3: 2018 | D3: 2019 | E3: 2020
A4: Pass lecture/culture - Bibliothèque tous publics* | B4: 37271 | C4: 37009 | D4: 39805 | E4: 21204
A5: Pass annuel recherche** | B5: 22389 | C5: 21384 | D5: 21477 | E5: 12062
A6: Carte 15 entrées** | B6: 417
A7: Carte 3 entrées** | B7: 1957
A8: Pass recherche 5 entrées | B8: 2496 | C8: 2792 | D8: 2687 | E8: 941
A9: Pass recherche 1 entrée | B9: 7327 | C9: 9164 | D9: 9171 | E9: 3330
A10: Total Recherche | B10: 34586 | C10: 33340 | D10: 33335 | E10: =SUM(E5+E8+E9) -> 16333

Sheet Tableau 13
A1: Tableau 13 : Fréquentation des salles de lecture
B3: 2017 | C3: 2018 | D3: 2019 | E3: 2020
A4: Rez-de-jardin | B4: 302031 | C4: 309969 | D4: 302303 | E4: 117159
A5: Richelieu | B5: 28679 | C5: 27043 | D5: 27571 | E5: 13565
A6: Arsenal | B6: 8236 | C6: 7432 | D6: 8084 | E6: 3870
A7: Opéra | B7: 2076 | C7: 2036 | D7: 2198 | E7: 917
A8: Avignon | B8: 6321 | C8: 4204 | D8: 6004 | E8: 660
A9: Sous total RAO | B9: =SUM(B5:B8) -> 45312 | C9: =SUM(C5:C8) -> 40715 | D9: =SUM(D5:D8) -> 43857 | E9: =SUM(E5:E8) -> 19012
A10: Total bibliothèque de recherche | B10: =B9+B4 -> 347343 | C10: =C9+C4 -> 350684 | D10: =D9+D4 -> 346160 | E10: =E9+E4 -> 136171
A11: Haut-de-jardin | B11: 507976 | C11: 507637 | D11: 504604 | E11: 185893
A12: Estimations Haut-de-jardin hors salles de lecture | B12: 66619 | C12: 66230 | D12: 70054 | E12: 16003
A13: Total Haut-de-jardin | B13: =B11+B12 -> 574595 | C13: 573867 | D13: =D11+D12 -> 574658 | E13: 201896
A14: Total BnF | B14: =B10+B13 -> 921938 | C14: 926231 | D14: =D10+D13 -> 920818 | E14: =E10+E13 -> 338067

Sheet Tableau 14
A1: Tableau 14 : Nombre de documents communiqués
B3: 2017 | C3: 2018 | D3: 2019 | E3: 2020
A4: Rez-de-Jardin | B4: 705420 | C4: 670848 | D4: 780461 | E4: 279391
A5: RAO | B5: 175655 | C5: 200132 | D5: 161612 | E5: 70632
A6: Total sur support | B6: =SUM(B4:B5) -> 881075 | C6: 870980 | D6: =SUM(D4:D5) -> 942073 | E6: 350023
A7: Gallica intramuros | B7: 135301 | C7: 119213 | D7: 125173 | E7: 75191
A8: Total BnF | B8: =B6+B7 -> 1016376 | C8: 990193 | D8: =D6+D7 -> 1067246 | E8: 425214
A10: En 2019, évolution de l'indicateur Rez-de-jardin, pour inclure plus systématiquement les
A11: demandes de mise de côté communiquées le lendemain

Sheet Tableau 15
A1: Tableau 15 : Fréquentation des expositions temporaires (accès payants et gratuits)
A3: En nombre de visites
A4: Fréquentation des expositions temporaires | B4: Salle | C4: 2020 | D4: 2019/2020
A5: Tolkien. Voyage en Terre du Milieu | B5: Galeries 1 et 2 - François-Mitterrand | C5: 63047 | D5: 72024
A6: Josef Koudelka. Ruines | B6: Galerie 2 - François-Mitterrand | C6: 13439
A7: Total expositions payantes | C7: =SUM(C5:C6) -> 76486
A8: Claudine Nougaret : dégager l'écoute | B8: Galerie des donateurs - François-Mitterrand | C8: 10306
A9: Pascal Quignard, Fragments d'une écriture | B9: Galerie des donateurs - François-Mitterrand | C9: 4171
A10: La Société des bibliophiles françois, Pour l’amour du livre | B10: Bibliothèque de l'Arsenal | C10: 345
A11: Total expositions gratuites | C11: =SUM(C8:C10) -> 14822
A12: Le Grand Opéra : le spectacle de l'histoire | B12: Opéra Garnier | C12: 22670 | D12: 65555
A13: Total expositions site Opéra | C13: =C12 -> 22670
A14: TOTAL | C14: =C7+C11+C13 -> 113978

Sheet Tableau 16
A1: Tableau 16 : Fréquentation des principales manifestations culturelles
A2: Manifestations ayant rassemblé 200 personnes ou plus
A4: Cycle | B4: Titre | C4: Type de manifestation | D4: Date | E4: Lieu | F4: Fréq.
A5: Autour de l’exposition Tolkien, voyage en Terre du Milieu | B5: Alan Lee : illustrer Tolkien (avec Marie Bertagnolle) avec retransmission en salle 70 | C5: Conférence | D5: 2020-02-06 | E5: FM - Grand auditorium | F5: 404
A6: En lisant, en écrivant | B6: Ian McEwan | C6: Conférence | D6: 2020-01-14 | E6: FM - Grand auditorium | F6: 302
A7: - | B7: Folie #1 | C7: Événement | D7: 2020-08-21 | E7: FM - Esplanade | F7: 250
A8: Les rendez-vous du jeu vidéo | B8: Créer un univers fantasy. L’exemple de « The Witcher 3. Wild Hunt » | C8: Conférence | D8: 2020-02-25 | E8: FM - Petit auditorium | F8: 235
A9: - | B9: Symphonies de salon : Antoine Reicha, Ludwig van Beethoven | C9: Spectacle vivant | D9: 2020-02-04 | E9: FM - Grand auditorium | F9: 204
A10: Fantasy, retour aux sources | B10: Le Roi Arthur, un mythe contemporain | C10: Conférence | D10: 2020-03-12 | E10: FM - Petit auditorium | F10: 200
A11: - | B11: Dans la solitude des champs de coton | C11: Événement | D11: 2020-09-02 | E11: FM - Esplanade | F11: 200

Sheet Tableau 17
A1: Tableau 17 : Fréquentation des activités d'éducation artistique et culturelle
A3: Par rapport aux années précédentes, ce tableau prend en compte l'accueil de groupes autonomes et les groupes grand public hors scolaire
A5: Activités | B5: Accueils BnF | C5: Accueils groupes autonomes
A6: Grand public
A7: Visites de la BnF | B7: 2307 | C7: 825
A8: Ateliers | B8: 702
A9: Visites d'expositions | B9: 1737 | C9: 948
A10: Total | B10: =SUM(B7:B9) -> 4746 | C10: =SUM(C7:C9) -> 1773
A11: Scolaires
A12: Visites de la BnF | B12: 1002
A13: Ateliers | B13: 1772
A14: Visites d'expositions | B14: 2007 | C14: 2171
A15: Autres (concours de récitation, journée presse...) | B15: annulés
A16: Total | B16: =SUM(B12:B15) -> 4781 | C16: =SUM(C12:C14) -> 2171
A17: Formations enseignants
A18: Formations à la BnF | B18: 198
A19: Visites de la BnF | B19: 580
A20: Visites d'expositions | B20: 145
A21: Formations à distance | B21: 251
A22: Journées EAC dans les territoires | B22: 115
A23: Autres (concours de récitation, journée presse...)
A24: Total | B24: =SUM(B18:B23) -> 1289 | C24: =SUM(C19:C22) -> 0
A25: TOTAL | B25: =B10+B16+B24 -> 10816 | C25: =C10+C16+C24 -> 3944

Sheet Tableau 18
A1: Tableau 18 : L'offre documentaire de Gallica
B3: 2017 | C3: 2018 | D3: 2019 | E3: 2020
A4: Monographies | B4: 370460 | C4: 389775 | D4: 425412 | E4: 461792
A5: Fascicules de périodiques | B5: 1976433 | C5: 2349523 | D5: 3500459 | E5: 4685698
A6: Documents iconographiques | B6: 1513998 | C6: 1257843 | D6: 1402067 | E6: 1476519
A7: Cartes et plans | B7: 137008 | C7: 156630 | D7: 170210 | E7: 174281
A8: Documents sonores | B8: 47404 | C8: 47521 | D8: 47612 | E8: 47933
A9: Manuscrits | B9: 69292 | C9: 78569 | D9: 92140 | E9: 104208
A10: Musique notée | B10: 46110 | C10: 49588 | D10: 47233 | E10: 51426
A11: Vidéos | B11: 733 | C11: 1338 | D11: 1638 | E11: 2258
A12: Objets | B12: 179267 | C12: 179342 | D12: 222776 | E12: 246267
A13: Nombre total de documents | B13: =SUM(B4:B12) -> 4340705 | C13: =SUM(C4:C12) -> 4510129 | D13: =SUM(D4:D12) -> 5909547 | E13: =SUM(E4:E12) -> 7250382
A15: (hors documents uniquement indexés et hors Gallica intra muros)

Sheet Tableau 19
A1: Tableau 19 : La fréquentation de Gallica
B3: 2017 | C3: 2018 | D3: 2019 | E3: 2020
A4: gallica.bnf.fr* | B4: 13468641 | C4: 15242033 | D4: 14926804 | E4: 17954940
A5: lecteur exportable | B5: 50908 | C5: 19200 | D5: 8363 | E5: 506280
A6: application | B6: 371010 | C6: 312182 | D6: 259304 | E6: 254764
A7: Site mobile gallica.bnf.fr/m* | B7: 1757629
A8: Gallica intra-muros | B8: 41404 | C8: 44771 | D8: 45823 | E8: 33112
A9: Gallicadabra | B9: 7706 | C9: 7050 | D9: 9725 | E9: 10011
A10: Gallica studio | B10: 11867 | C10: 34498 | D10: 28227 | E10: 25880
A11: Numistral | B11: 21502 | C11: 38534 | D11: 43655 | E11: 37677
A12: Grande Collecte | B12: 8848 | C12: 36601 | D12: 22325 | E12: 4420
A13: Rotomagus | B13: 9890 | C13: 20661 | D13: 21691 | E13: 7559
A14: Bibliothèque numérique du RFN | B14: 13724 | C14: 26133 | D14: 27672 | E14: 28116
A15: Bibliothèque diplomatique numérique | C15: 39769 | D15: 34091 | E15: 21059
A16: France-Angleterre | C16: 20126 | D16: 85979 | E16: 31609
A17: Numba | D17: 20667 | E17: 8303
A18: Rosalis | E18: 50841
A19: Pireneas | E19: 37345
A20: IIIF-Gallica** | B20: 20614
A21: Nombre total de visites | B21: =SUM(B4:B20) -> 15783743 | C21: =SUM(C4:C20) -> 15841558 | D21: =SUM(D4:D20) -> 15534326 | E21: =SUM(E4:E20) -> 19011916
A23: En italiques : services ouverts en cours d'année.
A24: * mesures fusionnées en octobre 2017 entre site mobile et site principal
A25: ** arrêt de la mesure en mars 2017

Sheet Tableau 20
A1: Tableaux 20 : Les partenaires de Gallica au 31 décembre 2020
A3: Les partenaires de Gallica par types de partenaires * | B3: 2020
A4: Partenaires des territoires | B4: 152
A5: Partenaires de l’Enseignement supérieur et de la recherche | B5: 38
A6: Autres partenaires | B6: 54
A7: Bibliothèques étrangères | B7: 10
A8: Total des partenaires de Gallica | B8: 254
A9: (toutes filières)
A11: Nombre de documents des partenaires accessibles dans Gallica par filières | B11: Fin 2020
A12: Intégration par numérisation des documents dans les marchés et ateliers de la BnF | B12: 237042
A13: Intégration des fichiers numériques | B13: 365015
A14: Référencement par moissonnage des bibliothèques numériques partenaires | B14: 737375
A15: Total des documents des partenaires | B15: =SUM(B12:B14) -> 1339432
A17: * le calcul des partenaires a évolué. Désormais, seuls les partenaires actifs (moissonnés ou présents) dans Gallica sont comptabilisés
